bitfinex/quotes_ETHUSD_20241215
["timestamp","ask_amount","ask_price","bid_price","bid_amount"]
[1734241440418,2.50620028,3894.7,3894.2,1.07482823]
[1734241440633,2.50620028,3894.7,3894.0,1.61224235]
[1734241440634,0.19243036,3894.5,3894.3,2.22482333]
[1734241440818,0.25657478,3894.6,3894.4,0.88992933]
[1734241441062,0.19243024,3894.5,3894.3,0.08768395]
[1734241441240,0.25657478,3894.6,3894.5,0.08765436]
[1734241441241,0.25657372,3894.6,3894.5,0.08765436]
[1734241441435,0.44900348,3894.6,3894.4,0.08766916]
[1734241441727,0.19242976,3894.5,3894.1,1.07482823]
[1734241441928,0.19242976,3894.4,3894.2,2.22483085]
[1734241442168,0.25657372,3894.6,3894.3,2.22483085]
[1734241442470,0.25657372,3894.6,3894.1,1.07482823]
[1734241442471,0.19243052,3894.5,3894.4,0.88993234]
[1734241443232,0.19242924,3894.5,3894.4,0.88993234]
[1734241444936,0.19242924,3894.5,3894.4,0.88990181]
[1734241446160,1.89876308,3894.7,3894.4,0.88990181]
[1734241446366,1.89876308,3894.7,3894.1,1.07482823]
[1734241446367,1.70198128,3894.6,3894.1,1.07482823]
[1734241446559,0.19242512,3894.5,3894.2,2.22471855]
[1734241446797,0.19242512,3894.4,3894.3,2.22471855]
[1734241449320,1.89876308,3894.7,3894.3,2.22471855]
[1734241449456,1.70197564,3894.6,3894.4,0.89001597]
[1734241449655,0.44898558,3894.6,3894.1,1.07482823]
[1734241449960,0.19242239,3894.5,3894.2,2.22504248]
[1734241450147,0.19242239,3894.4,3894.3,2.22504248]
[1734241452549,0.19242038,3894.4,3894.3,2.22504248]
[1734241453889,0.19242038,3894.4,3894.3,2.22528856]
[1734241455904,0.19242038,3894.4,3894.3,2.31296138]
[1734241458313,0.19242038,3894.4,3894.3,3.08498882]
[1734241458726,0.19242936,3894.4,3894.3,3.08498882]
[1734241462801,0.19242936,3894.4,3894.3,3.08506157]
[1734241465037,0.19242936,3894.4,3894.3,2.31366157]
[1734241468092,0.19248963,3894.4,3894.3,2.31366157]
[1734241469102,0.19248963,3894.4,3894.3,2.22598875]
[1734241469501,0.19248963,3894.4,3894.3,2.31361154]
[1734241471337,0.19249655,3894.4,3894.3,2.31361154]
[1734241474444,0.19248963,3894.4,3894.3,2.31361154]
[1734241476145,0.70005691,3894.4,3894.3,2.3148762]
[1734241477453,0.50756728,3894.4,3894.3,2.3148762]
[1734241477639,0.70005408,3894.4,3894.3,2.3148762]
[1734241477942,0.70005259,3894.4,3894.3,2.3148762]
[1734241480500,0.70005259,3894.4,3894.3,2.3153064]
[1734241481904,0.19248531,3894.4,3894.3,2.3153064]
[1734241482430,0.19248531,3894.4,3894.3,2.8926841]
[1734241486231,0.19248531,3894.4,3894.3,2.3153064]
[1734241489781,0.19248531,3894.4,3894.3,2.31589476]
[1734241490181,0.44896524,3894.4,3894.3,0.97893158]
[1734241495324,0.19241367,3894.4,3894.3,0.97893158]
[1734241496552,0.8107,3894.5,3894.3,0.97893158]
[1734241496740,0.19235086,3894.4,3894.3,0.08762279]
[1734241496909,0.19235086,3894.4,3894.3,0.89114585]
[1734241497110,0.44881868,3894.4,3894.3,0.08758574]
[1734241497355,2.92846216,3894.4,3894.3,0.08758574]
[1734241497521,2.92846216,3894.4,3893.7,1.07482823]
[1734241497522,2.56793,3894.2,3893.7,1.07482823]
[1734241497860,2.56805,3894.0,3893.8,2.22800551]
[1734241498008,0.19235086,3893.9,3893.8,0.08465964]
[1734241498211,0.19235086,3893.9,3893.5,1.07482823]
[1734241498411,0.19235086,3893.8,3893.6,2.22738413]
[1734241498607,0.19223902,3893.7,3893.6,0.08466044]
[1734241498827,0.19223902,3893.7,3893.6,2.31203482]
[1734241499057,0.19223902,3893.7,3893.6,0.08466044]
[1734241499258,0.19223902,3893.7,3893.6,2.31204369]
[1734241499560,0.19223902,3893.7,3893.6,0.97561374]
[1734241499865,0.19223902,3893.7,3893.6,0.08466044]
[1734241500151,0.68232362,3893.7,3893.6,0.08466044]
[1734241500326,0.68232362,3893.7,3893.2,1.07482823]
[1734241500525,3.0583346,3893.7,3893.6,0.08466044]
[1734241500731,3.25050767,3893.7,3893.2,1.07482823]
[1734241500929,3.0583346,3893.7,3893.6,0.08466044]
[1734241501265,3.25050425,3893.7,3893.6,0.0817315]
[1734241501755,3.25050425,3893.7,3893.0,3.65014346]
[1734241501756,3.25050425,3893.7,3893.1,1.07482823]
[1734241501961,3.25050425,3893.7,3893.6,0.0817991]
[1734241501962,2.56825,3893.7,3893.6,0.0817991]
[1734241502168,2.76033826,3893.7,3893.1,1.07482823]
[1734241502462,2.56825,3893.7,3893.2,2.22572628]
[1734241502613,0.19198028,3893.6,3893.3,0.89029051]
[1734241502960,0.19198028,3893.5,3893.3,0.08184352]
[1734241503165,0.19198028,3893.4,3893.0,4.33169923]
[1734241503363,0.19198028,3893.3,3893.1,2.22524603]
[1734241503521,2.56825,3893.7,3893.2,2.22524603]
[1734241503716,0.19197296,3893.6,3893.3,0.89009749]
[1734241503947,0.19197296,3893.5,3893.0,4.33169923]
[1734241504133,0.19197296,3893.4,3893.1,2.22524557]
[1734241504340,0.19197296,3893.3,3893.2,2.22524557]
[1734241504663,0.19197296,3893.3,3893.2,1.33514734]
[1734241504965,0.19197296,3893.3,3893.2,2.22524557]
[1734241505112,0.19197296,3893.3,3893.2,1.33514734]
[1734241505316,0.19197296,3893.3,3893.2,0.89009823]
[1734241505517,0.19197296,3893.3,3893.1,0.89009823]
[1734241505717,2.69664385,3893.7,3893.2,0.89009823]
[1734241505935,0.19191329,3893.6,3893.0,1.33169923]
[1734241506135,0.19191329,3893.5,3893.1,2.22448486]
[1734241506353,0.19191329,3893.4,3893.2,0.88978119]
[1734241506623,0.19191329,3893.3,3893.0,1.33169923]
[1734241506971,0.19191329,3893.2,3893.1,2.22418197]
[1734241507849,0.19191329,3893.2,3893.1,0.88967279]
[1734241508053,0.19191329,3893.2,3893.0,0.256871]
[1734241508236,0.19191329,3893.1,3893.0,0.256871]
[1734241508434,0.821,3893.4,3893.0,0.256871]
[1734241508636,0.191835,3893.3,3893.0,0.256871]
[1734241508874,0.191835,3893.2,3893.1,0.7526]
[1734241509066,0.191835,3893.2,3893.1,2.97612915]
[1734241509229,0.191835,3893.2,3893.1,4.1135191]
[1734241509430,0.1918593,3893.2,3893.1,4.1135191]
[1734241509736,0.1918593,3893.2,3893.1,5.07613217]
[1734241510196,0.1918593,3893.2,3893.1,3.93874222]
[1734241510510,0.12840396,3894.1,3893.1,5.01357045]
[1734241510808,0.32027309,3894.0,3893.3,0.7526]
[1734241511008,0.19186913,3893.9,3893.3,0.7526]
[1734241511210,0.19186913,3893.8,3893.3,0.7526]
[1734241511411,0.19186913,3893.7,3893.3,0.7526]
[1734241511717,0.12838313,3894.0,3893.3,0.7526]
[1734241511915,0.19189542,3893.9,3893.3,0.7526]
[1734241512204,0.19189542,3893.8,3893.3,0.7526]
[1734241512404,0.25586056,3894.2,3893.3,0.7526]
[1734241512405,0.19189542,3893.7,3893.3,0.7526]
[1734241512611,0.19189542,3893.6,3893.3,0.7526]
[1734241512785,0.19189542,3893.5,3893.3,1.21789692]
[1734241512983,0.19189542,3893.4,3893.3,1.21789692]
[1734241513183,0.19189542,3893.4,3893.3,2.10711861]
[1734241514794,2.56787,3894.3,3893.3,2.10711861]
[1734241515020,0.5761537,3894.2,3893.3,0.7526]
[1734241515169,2.56787,3894.3,3893.3,0.7526]
[1734241515373,0.57614176,3894.2,3893.3,0.7526]
[1734241515570,0.32027954,3894.1,3893.3,0.7526]
[1734241515867,0.7633,3893.9,3893.4,0.0801629]
[1734241516098,0.19189666,3893.8,3893.4,0.0801629]
[1734241516281,0.19189666,3893.7,3893.4,0.0801629]
[1734241516493,0.19189666,3893.6,3893.4,0.0801629]
[1734241516703,0.19189666,3893.5,3893.4,0.0801629]
[1734241523126,0.19189666,3893.5,3893.4,0.07989182]
[1734241523323,0.19189666,3893.5,3893.1,1.07482823]
[1734241523512,0.19189666,3893.4,3893.1,3.297938]
[1734241523722,0.19189666,3893.3,3893.1,3.297938]
[1734241524030,0.19189666,3893.2,3893.1,3.297938]
[1734241524434,0.19189666,3893.2,3893.1,1.07482823]
[1734241524586,0.1920811,3893.2,3893.1,1.96410466]
[1734241525244,0.1920811,3893.2,3893.1,3.29801931]
[1734241527797,0.7633,3893.9,3893.1,3.29801931]
[1734241527997,0.32061689,3893.8,3893.2,2.22319108]
[1734241528295,0.32061689,3893.7,3893.3,0.88927643]
[1734241528498,1.46647064,3893.9,3893.0,0.256871]
[1734241528499,0.32061689,3893.6,3893.0,0.256871]
[1734241528699,1.21016099,3893.9,3893.0,0.256871]
[1734241528700,0.32061689,3893.5,3893.1,0.88950019]
[1734241528930,0.25630965,3893.7,3893.1,0.88950019]
[1734241528931,0.32061689,3893.4,3893.1,0.88950019]
[1734241529144,0.25630965,3893.7,3893.0,0.256871]
[1734241529145,0.19223248,3893.3,3893.0,0.256871]
[1734241529439,0.19223248,3893.2,3893.1,0.88954409]
[1734241530280,0.19223248,3893.2,3893.0,1.14641509]
[1734241530410,0.12839308,3893.6,3893.1,0.88954409]
[1734241530615,1.10398676,3893.5,3893.1,0.88954409]
[1734241530914,0.32058676,3893.4,3893.2,0.07998841]
[1734241531123,0.7834,3893.5,3893.2,0.07998841]
[1734241531317,0.32058374,3893.4,3893.0,0.256871]
[1734241531518,0.32058374,3893.3,3893.1,0.88965387]
[1734241531863,0.19218885,3893.2,3893.1,0.88965387]
[1734241533517,0.19218885,3893.2,3893.0,0.256871]
[1734241533721,0.12839578,3893.4,3893.1,0.88978845]
[1734241533945,0.32053254,3893.3,3893.1,0.88978845]
[1734241534162,0.19213676,3893.2,3893.1,0.88978845]
[1734241535171,0.7834,3893.5,3893.1,0.88978845]
[1734241535461,0.32052627,3893.4,3893.1,0.88978845]
[1734241535761,0.32052627,3893.3,3893.1,0.88978845]
[1734241535929,0.19213131,3893.2,3893.1,0.88978845]
[1734241537049,0.32053177,3893.2,3893.0,0.256871]
[1734241537257,0.19213131,3893.1,3893.0,0.256871]
[1734241537422,0.19213131,3893.1,3893.0,1.14690798]
[1734241537622,0.19213131,3893.1,3893.0,0.256871]
[1734241538122,0.19213131,3893.1,3893.0,1.14698824]
[1734241538123,0.96943131,3893.1,3893.0,1.14698824]
[1734241538338,0.96943131,3893.1,3893.0,0.256871]
[1734241539722,1.09783288,3893.1,3893.0,0.256871]
[1734241540387,0.19213131,3893.1,3893.0,1.14705209]
[1734241540753,0.19213131,3893.1,3893.0,0.256871]
[1734241541485,0.7773,3893.4,3893.0,1.14718668]
[1734241541688,0.1920386,3893.1,3893.0,0.256871]
[1734241541989,0.1920389,3893.1,3893.0,0.256871]
[1734241542339,0.1920389,3893.1,3893.0,2.48273531]
[1734241542540,0.1920389,3893.1,3893.0,1.14714495]
[1734241542736,0.1920389,3893.1,3893.0,1.14725405]
[1734241542941,0.1920389,3893.1,3893.0,2.48282862]
[1734241543877,0.1920389,3893.1,3893.0,1.14725405]
[1734241545645,0.1920389,3893.1,3893.0,1.22762516]
[1734241546192,0.1920389,3893.1,3893.0,2.56335]
[1734241546343,0.1920389,3893.1,3893.0,3.35845]
[1734241546559,0.1920389,3893.1,3893.0,4.43327823]
[1734241547174,0.1920389,3893.1,3893.0,4.43309847]
[1734241550201,0.1920389,3893.1,3893.0,2.56317024]
[1734241550962,0.19199555,3893.1,3893.0,2.56317024]
[1734241551303,2.39002756,3893.8,3893.0,2.56317024]
[1734241551631,0.25600158,3893.6,3893.1,0.89042097]
[1734241551831,0.32040537,3893.5,3893.1,0.89042097]
[1734241552132,0.32040537,3893.4,3893.2,0.08036375]
[1734241552282,0.32040537,3893.3,3893.2,0.08036375]
[1734241552482,0.32040537,3893.3,3893.0,0.256871]
[1734241552682,0.32040537,3893.2,3893.1,0.97078148]
[1734241553280,0.32040537,3893.2,3893.1,0.97076103]
[1734241553725,0.32040537,3893.2,3893.1,0.08037856]
[1734241553894,0.32040537,3893.2,3893.1,0.97076103]
[1734241554297,0.32040537,3893.2,3893.1,0.08037856]
[1734241554840,0.32040537,3893.2,3893.1,0.97075268]
[1734241555037,0.32040537,3893.2,3893.1,0.08037856]
[1734241556290,0.45713607,3893.2,3893.1,0.08037856]
[1734241557315,0.1367307,3893.2,3893.1,0.08037856]
[1734241557509,0.45717436,3893.2,3893.1,0.08037856]
[1734241560349,0.1367307,3893.2,3893.1,0.08037856]
[1734241560743,0.45721955,3893.2,3893.1,0.08037856]
[1734241560972,1.23641955,3893.2,3893.1,0.08037856]
[1734241561469,1.4925277,3893.2,3893.1,0.08037856]
[1734241561969,1.4925277,3893.2,3893.0,0.256871]
[1734241562131,0.72658862,3893.1,3893.0,0.256871]
[1734241562646,0.40609977,3893.1,3893.0,0.256871]
[1734241562827,0.72655862,3893.1,3893.0,0.256871]
[1734241564330,0.32045885,3893.1,3893.0,0.256871]
[1734241565733,0.9159307,3893.2,3893.0,0.256871]
[1734241566079,0.32038363,3893.1,3893.0,0.256871]
[1734241566671,0.57634112,3893.1,3893.0,0.256871]
[1734241567377,0.32038363,3893.1,3893.0,0.256871]
[1734241567534,0.8341565,3893.1,3893.0,0.256871]
[1734241567886,0.51377287,3893.1,3893.0,0.256871]
[1734241568094,0.83412021,3893.1,3893.0,0.256871]
[1734241568853,0.83410879,3893.1,3893.0,0.256871]
[1734241569284,0.83411203,3893.1,3893.0,0.256871]
[1734241570505,1.09000798,3893.1,3893.0,0.256871]
[1734241572216,1.08988426,3893.1,3893.0,0.256871]
[1734241573524,1.08679367,3893.1,3893.0,0.256871]
[1734241573881,1.59481333,3893.1,3893.0,0.256871]
[1734241574783,1.33898917,3893.1,3893.0,0.256871]
[1734241577307,2.73220328,3893.1,3893.0,0.256871]
[1734241577517,3.51360328,3893.1,3893.0,0.256871]
[1734241578291,3.2578257,3893.1,3893.0,0.256871]
[1734241579396,4.50142759,3893.1,3893.0,0.256871]
[1734241579912,5.57584487,3893.1,3893.0,0.256871]
[1734241580112,4.50142759,3893.1,3893.0,0.256871]
[1734241580685,4.5012941,3893.1,3893.0,0.256871]
[1734241581384,4.18096029,3893.1,3893.0,0.256871]
[1734241581582,6.10932996,3893.1,3893.0,0.256871]
[1734241581807,6.11251936,3893.1,3893.0,0.256871]
[1734241582260,6.15900184,3893.1,3893.0,0.256871]
[1734241582466,6.11227425,3893.1,3893.0,0.256871]
[1734241582622,6.15876698,3893.1,3893.0,0.256871]
[1734241585041,6.15743581,3893.1,3893.0,0.256871]
[1734241585209,6.70743581,3893.1,3893.0,0.256871]
[1734241585411,6.65939201,3893.1,3893.0,0.256871]
[1734241585753,6.65917476,3893.1,3893.0,0.256871]
[1734241586307,5.04972266,3893.1,3893.0,0.256871]
[1734241586656,4.49972266,3893.1,3893.0,0.256871]
[1734241587526,5.5724403,3893.1,3893.0,0.256871]
[1734241587732,5.57222524,3893.1,3893.0,0.256871]
[1734241587925,4.17941187,3893.1,3893.0,0.256871]
[1734241588256,4.49950967,3893.1,3893.0,0.256871]
[1734241590170,5.57154209,3893.1,3893.0,0.256871]
[1734241590667,5.57148559,3893.1,3893.0,0.256871]
[1734241591388,0.98862584,3893.0,3891.5,1.07482823]
[1734241591677,1.13738995,3892.0,3891.4,0.7893]
[1734241591826,0.1916605,3891.9,3891.4,0.7893]
[1734241592030,0.1916605,3891.8,3891.4,0.7893]
[1734241592280,0.1916605,3891.7,3891.4,0.7893]
[1734241592578,0.1916605,3891.6,3891.4,0.7893]
[1734241592730,0.1916605,3891.5,3891.4,0.7893]
[1734241598989,0.19148982,3891.5,3891.4,0.7893]
[1734241600202,0.19143285,3891.5,3891.4,0.7893]
[1734241600538,0.19143271,3891.5,3891.4,0.7893]
[1734241603454,1.13738995,3892.0,3891.4,0.7893]
[1734241603805,0.19145184,3891.9,3891.4,0.7893]
[1734241604004,0.19145184,3891.8,3891.4,0.7893]
[1734241604161,0.19145184,3891.7,3891.4,0.7893]
[1734241604514,0.19145184,3891.6,3891.2,0.7893]
[1734241604803,0.19145184,3891.5,3891.2,0.7893]
[1734241605118,0.19145184,3891.4,3891.2,0.7893]
[1734241605267,0.19145184,3891.3,3891.2,0.7893]
[1734241605625,0.19145184,3891.3,3891.2,1.23270782]
[1734241605917,0.19145184,3891.3,3891.2,2.19885336]
[1734241606707,0.8175,3892.1,3891.2,4.76874336]
[1734241606889,0.31997762,3892.0,3891.2,3.43639541]
[1734241607106,0.19152576,3891.9,3891.2,3.43639541]
[1734241607274,0.19152576,3891.8,3891.2,3.43639541]
[1734241607476,0.19152576,3891.7,3891.2,3.43639541]
[1734241607676,0.19152576,3891.6,3891.2,3.43639541]
[1734241607876,0.19152576,3891.5,3891.2,3.43639541]
[1734241608142,0.12845207,3892.1,3891.6,2.56962]
[1734241608357,0.1915795,3892.0,3891.7,3.38366]
[1734241608519,0.1915795,3891.9,3891.7,3.4607913]
[1734241608839,0.1915795,3891.8,3891.7,3.4607913]
[1734241613144,1.31746315,3892.6,3891.7,3.4607913]
[1734241613305,0.82123322,3892.5,3891.7,3.4607913]
[1734241613503,0.3201421,3892.4,3891.7,3.4607913]
[1734241613747,0.3201421,3892.3,3891.7,3.4607913]
[1734241613903,0.3201421,3892.2,3891.7,3.4607913]
[1734241614103,0.19170436,3892.1,3891.7,3.4607913]
[1734241614305,0.19170436,3892.0,3891.7,3.4607913]
[1734241614546,0.19170436,3891.9,3891.7,0.8912313]
[1734241614746,0.19170436,3891.8,3891.7,0.8912313]
[1734241616392,0.1917164,3891.8,3891.7,0.8912313]
[1734241616891,0.1917164,3891.8,3891.7,1.78076708]
[1734241617179,0.1917164,3891.8,3891.7,1.78076748]
[1734241617966,0.1917164,3891.8,3891.7,0.8912313]
[1734241619691,0.19173562,3891.8,3891.7,1.78104669]
[1734241620779,0.19173562,3891.8,3891.7,6.67746468]
[1734241620986,0.19173562,3891.8,3891.7,7.75230357]
[1734241621497,0.19173562,3891.8,3891.7,6.67747534]
[1734241621883,0.52426315,3892.6,3891.8,0.8331]
[1734241622080,0.32017687,3892.5,3892.0,0.8331]
[1734241622309,0.32017687,3892.4,3892.0,0.8331]
[1734241622517,0.19174592,3892.3,3892.1,0.07686628]
[1734241622675,0.19174592,3892.2,3892.1,0.07686628]
[1734241624320,0.32017823,3892.2,3892.1,0.07686628]
[1734241624673,0.19174592,3892.2,3892.1,0.07686628]
[1734241625068,0.52426315,3892.6,3892.1,0.07686628]
[1734241625273,0.32013534,3892.5,3892.1,0.07686628]
[1734241625500,0.32013621,3892.4,3892.1,0.07686628]
[1734241625777,0.32013621,3892.3,3892.1,0.07686628]
[1734241625973,0.32013621,3892.2,3892.1,0.07686628]
[1734241626173,0.19170146,3892.2,3892.1,0.07686628]
[1734241626699,0.32013621,3892.2,3892.1,0.07686628]
[1734241626910,0.19170146,3892.2,3892.1,0.96736993]
[1734241627382,0.19170146,3892.2,3892.1,2.3030751]
[1734241628010,0.19170146,3892.2,3892.1,8.73101035]
[1734241628219,0.19170146,3892.2,3892.1,7.59406192]
[1734241628424,1.84190336,3893.2,3892.1,6.51731056]
[1734241628595,0.25560831,3893.0,3892.2,5.87179829]
[1734241628793,0.32012644,3892.9,3892.3,2.22581998]
[1734241629023,0.32012644,3892.8,3892.4,0.89032799]
[1734241629227,0.32012644,3892.7,3892.4,0.96706641]
[1734241629435,0.19170623,3892.6,3892.4,0.07673842]
[1734241629585,0.25560831,3893.1,3892.3,2.56916]
[1734241629586,0.19170623,3892.5,3892.3,2.56916]
[1734241629788,0.12842021,3892.7,3892.5,2.64558567]
[1734241630018,0.19165389,3892.6,3892.5,2.56904]
[1734241630326,0.19165389,3892.6,3892.5,3.34754]
[1734241630683,0.19165389,3892.6,3892.5,4.23760235]
[1734241631210,0.19165389,3892.6,3892.5,7.23760235]
[1734241631407,0.19165389,3892.6,3892.5,9.58407336]
[1734241631909,0.19165389,3892.6,3892.5,10.66081167]
[1734241632243,0.19165389,3892.6,3892.5,9.58407336]
[1734241632741,0.19165389,3892.6,3892.5,11.79820162]
[1734241633048,0.12842021,3893.4,3892.7,0.82]
[1734241633195,0.19156167,3893.3,3892.8,0.89006235]
[1734241633400,0.19156167,3893.2,3892.8,0.89006235]
[1734241633601,0.19156167,3893.1,3892.8,0.79349571]
[1734241633801,0.19156167,3893.0,3892.8,0.79349571]
[1734241634002,0.19156167,3892.9,3892.8,3.36232571]
[1734241634987,0.19156167,3892.9,3892.8,4.25142639]
[1734241635128,0.19156167,3892.9,3892.8,3.36232571]
[1734241635823,0.19156167,3892.9,3892.8,9.48023631]
[1734241636054,0.12842021,3893.7,3893.3,2.5685]
[1734241636364,0.19144587,3893.6,3893.3,3.3885]
[1734241636552,0.19144587,3893.5,3893.4,0.07562847]
[1734241641144,0.51970464,3893.9,3893.4,0.07562847]
[1734241641339,0.19125988,3893.8,3893.4,0.07562847]
[1734241641544,0.19125988,3893.7,3893.4,0.07562847]
[1734241641758,0.19125988,3893.6,3893.4,0.07562847]
[1734241641943,0.19125988,3893.5,3893.4,0.07562847]
[1734241647492,0.51970464,3893.9,3893.4,0.07562847]
[1734241647661,0.19124623,3893.8,3893.4,0.07562847]
[1734241647861,0.19124623,3893.7,3893.4,0.07562847]
[1734241648063,0.19124623,3893.6,3893.4,0.07562847]
[1734241648277,0.19124623,3893.5,3893.4,0.07562847]
[1734241649077,0.19124623,3893.5,3893.0,0.7967]
[1734241649275,0.752,3893.6,3893.4,0.07545046]
[1734241649476,0.19131471,3893.5,3893.0,0.7967]
[1734241649681,0.19131471,3893.4,3893.0,0.7967]
[1734241649991,0.19131471,3893.3,3893.0,0.7967]
[1734241650208,0.19131471,3893.2,3893.0,0.7967]
[1734241650497,0.19131471,3893.1,3893.0,0.7967]
[1734241652063,0.752,3893.6,3893.0,0.7967]
[1734241652264,0.19134132,3893.5,3893.0,0.7967]
[1734241652573,0.19134132,3893.4,3893.0,0.7967]
[1734241652753,0.19134132,3893.3,3892.6,5.56892]
[1734241653106,0.19134132,3893.2,3892.7,0.7967]
[1734241653254,0.19134132,3893.1,3892.7,0.7967]
[1734241653454,0.19134132,3893.0,3892.7,0.7967]
[1734241653693,0.19134132,3892.9,3892.7,0.7967]
[1734241653907,1.16113099,3893.6,3892.7,0.7967]
[1734241654196,0.752,3893.4,3892.6,5.56892]
[1734241654352,0.19138808,3893.3,3892.6,5.56892]
[1734241654557,0.19138808,3893.2,3892.6,5.56892]
[1734241654753,0.19138808,3893.1,3892.6,5.56892]
[1734241654992,0.19138808,3893.0,3892.6,5.56892]
[1734241655198,0.19138808,3892.9,3892.6,5.56892]
[1734241655399,0.19144409,3892.8,3892.6,5.56892]
[1734241655566,0.19151249,3892.7,3892.6,5.56892]
[1734241658820,0.19151249,3892.7,3892.6,6.45696915]
[1734241659023,0.19151249,3892.7,3892.6,7.40600772]
[1734241660010,0.19151249,3892.7,3892.6,6.51795857]
[1734241660470,0.19151249,3892.7,3892.6,7.40618895]
[1734241660665,0.19151249,3892.7,3892.6,7.40618647]
[1734241661088,0.19151249,3892.7,3892.6,5.56892]
[1734241662066,0.19185382,3892.7,3892.6,5.56892]
[1734241662702,0.19185382,3892.7,3892.6,7.79008294]
[1734241663074,0.19185382,3892.7,3892.6,8.58678294]
[1734241664972,0.19186896,3892.7,3892.6,8.58683294]
[1734241665289,0.19186896,3892.7,3892.6,8.5874804]
[1734241665483,0.19186896,3892.7,3892.6,9.66335312]
[1734241666020,0.19186896,3892.7,3892.6,9.73899427]
[1734241666176,0.19186896,3892.7,3892.6,10.9826382]
[1734241666791,0.05254766,3892.7,3892.6,10.9826382]
[1734241667590,0.05254766,3892.7,3892.6,9.90676548]
[1734241668082,0.25582528,3893.7,3892.9,2.56873]
[1734241668703,0.25582528,3893.7,3893.0,2.64418297]
[1734241670795,0.25582528,3893.7,3893.0,0.07549297]
[1734241671026,0.25582528,3893.7,3893.1,2.56864]
[1734241671192,0.25585082,3893.7,3893.1,2.56864]
[1734241671399,0.25585082,3893.7,3893.2,0.07546334]
[1734241672028,0.25585082,3893.7,3893.2,2.64403334]
[1734241672512,1.00785082,3893.8,3893.2,2.64403334]
[1734241673522,1.00785082,3893.8,3893.3,2.5685]
[1734241673738,1.00785082,3893.8,3893.3,2.64394854]
[1734241674313,0.752,3893.8,3893.3,2.64394854]
[1734241674500,1.00787089,3893.8,3893.3,2.64394854]
[1734241676105,1.00787089,3893.8,3893.4,0.89074087]
[1734241676307,1.00787089,3893.8,3893.4,0.07543373]
[1734241677808,1.00787089,3893.8,3893.4,2.64383373]
[1734241678762,0.19187845,3893.7,3893.4,2.64383373]
[1734241679056,0.19187845,3893.6,3893.4,2.64383373]
[1734241679269,0.19187845,3893.5,3893.4,2.64383373]
[1734241679449,0.19187845,3893.5,3893.4,3.5347808]
[1734241679658,0.19187845,3893.5,3893.4,3.5347858]
[1734241681259,1.00782507,3893.8,3893.4,3.5347858]
[1734241681424,0.1918688,3893.7,3893.6,2.56831]
[1734241681627,0.1918688,3893.7,3893.6,3.10522308]
[1734241681824,0.1918688,3893.7,3893.6,7.24459358]
[1734241682030,0.1918688,3893.7,3893.6,13.07080002]
[1734241682286,0.1918688,3893.7,3893.6,10.92519744]
[1734241682428,1.01502507,3894.7,3894.1,2.56798]
[1734241682760,1.01502507,3894.7,3894.2,0.96573563]
[1734241682761,0.19180207,3894.6,3894.2,0.96573563]
[1734241682966,0.19180207,3894.5,3894.2,0.07482265]
[1734241683271,0.19180207,3894.4,3894.2,0.07482265]
[1734241683474,0.19180207,3894.3,3894.2,0.07482265]
[1734241684027,0.19180207,3894.3,3894.2,0.96472094]
[1734241684672,0.19180207,3894.3,3894.2,0.07482265]
[1734241685631,0.19180207,3894.3,3894.2,0.64401864]
[1734241685832,0.19180207,3894.3,3894.2,3.64401864]
[1734241686080,0.19155445,3894.3,3894.2,5.86726316]
[1734241686449,0.7592,3895.0,3894.5,2.56768]
[1734241686660,0.1914715,3894.9,3894.5,2.56768]
[1734241686831,0.7592,3895.0,3894.5,2.56768]
[1734241686832,0.1914715,3894.8,3894.6,0.07432687]
[1734241687050,0.1914715,3894.7,3894.6,0.07432687]
[1734241687944,0.1914715,3894.7,3894.6,0.88492687]
[1734241689161,0.19133474,3894.7,3894.6,0.07432687]
[1734241689543,0.19126956,3894.7,3894.3,4.53927386]
[1734241689751,0.7861,3895.3,3894.6,0.07356577]
[1734241690038,0.19127298,3895.2,3894.7,0.07355097]
[1734241690237,0.19127298,3895.1,3894.4,2.56777]
[1734241690438,0.19127298,3895.0,3894.5,0.07358056]
[1734241690790,0.19127298,3894.9,3894.5,0.07358056]
[1734241691036,0.19127298,3894.8,3894.5,0.07358056]
[1734241691170,0.19127298,3894.7,3894.5,0.07358056]
[1734241691516,0.7861,3895.3,3894.5,0.07358056]
[1734241691676,0.19119192,3895.2,3894.5,0.07358056]
[1734241691877,0.19119192,3895.1,3894.5,0.07358056]
[1734241692126,0.19119192,3895.0,3894.5,0.07358056]
[1734241692614,0.19119192,3894.9,3894.5,0.07358056]
[1734241692787,0.19119192,3894.8,3894.5,0.07358056]
[1734241692987,0.19119192,3894.7,3894.5,0.8917796]
[1734241693182,0.7861,3895.3,3894.5,0.8917796]
[1734241693417,0.19115519,3895.2,3894.5,0.8917796]
[1734241693629,0.19115519,3895.1,3894.5,0.8917796]
[1734241693828,0.19115519,3895.0,3894.5,0.8917796]
[1734241694129,0.19115519,3894.9,3894.5,0.07358056]
[1734241694268,0.97725519,3894.8,3894.0,0.8106]
[1734241694472,0.19115519,3894.7,3894.6,0.07356577]
[1734241694716,0.19115519,3894.7,3894.1,3.0]
[1734241694917,0.19115519,3894.6,3894.2,0.75386236]
[1734241695079,0.7861,3894.8,3894.2,0.75386236]
[1734241695273,0.19114474,3894.7,3894.2,0.75386236]
[1734241695524,0.7861,3894.8,3894.2,0.75386236]
[1734241695674,0.19114519,3894.7,3894.3,0.07339358]
[1734241696023,0.19114519,3894.6,3894.2,0.75386236]
[1734241696201,0.7861,3894.8,3894.4,0.07337878]
[1734241696404,0.19114868,3894.7,3894.3,0.07339358]
[1734241696571,0.19114868,3894.6,3894.5,0.07340285]
[1734241697111,0.19114868,3894.6,3894.2,0.75386236]
[1734241697315,0.19114868,3894.5,3894.2,0.75386236]
[1734241697506,0.19114868,3894.4,3894.0,0.8106]
[1734241697705,0.19114868,3894.3,3894.0,0.8106]
[1734241697916,0.7861,3894.8,3894.0,1.97059363]
[1734241698131,0.19116585,3894.7,3894.0,1.97059363]
[1734241698441,0.19116585,3894.6,3894.0,1.97059363]
[1734241698601,0.19116585,3894.5,3894.1,3.75386836]
[1734241698793,0.19118258,3894.4,3894.1,3.75386836]
[1734241698989,0.7861,3894.8,3894.1,3.75386836]
[1734241699190,0.19118814,3894.7,3894.1,3.75386836]
[1734241699385,0.19118814,3894.6,3894.1,3.75386836]
[1734241699589,0.19118814,3894.5,3894.2,1.12926907]
[1734241699786,0.7861,3894.8,3894.2,1.12926907]
[1734241699991,0.1912099,3894.7,3894.2,1.12926907]
[1734241700233,0.1912099,3894.6,3894.2,1.12926907]
[1734241700540,0.7861,3894.8,3894.2,3.69716907]
[1734241700541,0.1912099,3894.5,3894.2,3.69716907]
[1734241700687,0.7861,3894.8,3894.3,3.86679014]
[1734241700892,0.1912377,3894.7,3894.3,3.86679014]
[1734241701213,0.1912377,3894.6,3894.3,3.86679014]
[1734241701411,0.7861,3894.9,3894.3,3.86679014]